Cogmind - Beta 11.1 *** ADVENTURER MODE // 2022.09.18 @ 16:04:44 // AFD2019/Pay2Buy Player: SmallBrainBigPP Result: Self-destructed Performance ------------- Evolutions (7) 3500 Regions Visited (14) 2800 Robots Destroyed (545) 2725 Value Destroyed (30496) 30496 Prototype IDs (42) 840 Alien Tech Used (0) 0 Bonus (15483) 15483 TOTAL SCORE: 55844 Bonus ------- Triggered High Security 1000 High Alert Combat Kills 13065 Follower Combat Kills 466 Met R17 at Cetus 500 Scanned by Researcher 500 Friendly Fire -48 Cogmind --------- Core Integrity 1069/1300 Matter 160/300 Energy 4/340 System Corruption 5% Temperature Cool (84) Movement Treading (170) Location -3/Testing Parts ------- > --- POWER (4) -------- Heavy Antimatter Reactor > --- PROPULSION (4) --- Armored Heavy Treads Armored Heavy Treads > --- UTILITY (10) ----- Advanced Coolant Injector Experimental Targeting Computer Experimental Targeting Computer Advanced Particle Charger Makeshift Armor Plating Makeshift Armor Plating Advanced Focal Shield Beam Splitter Experimental EM Disruption Field Advanced Force Field > --- WEAPON (3) ------- Compact HERF Cannon Compact HERF Cannon > --- INVENTORY (10) --- Experimental Heat Sink Advanced Cloaking Device Advanced Corruption Screen Improved System Restoration Module Compact Mass Driver Compact Mass Driver Compact Linear Accelerator Peak State ------------ > --- POWER ------------ Improved Quantum Reactor Improved Quantum Reactor Improved Quantum Reactor Improved Quantum Reactor > --- PROPULSION ------- Armored Heavy Treads Improved Heavy Siege Treads > --- UTILITY ---------- Experimental Heat Sink Coolant Network Experimental Targeting Computer Experimental Targeting Computer Advanced Particle Charger Experimental Focal Shield Experimental Thermal Shield Experimental EM Disruption Field Advanced Force Field > --- WEAPON ----------- Compact Mass Driver Compact Mass Driver Compact Linear Accelerator > --- INVENTORY -------- Improved Quantum Reactor Experimental Heat Sink Advanced Cloaking Device Advanced Force Field Advanced Corruption Screen Improved System Restoration Module Improved System Restoration Module Compact HERF Cannon Compact HERF Cannon Compact HERF Cannon [Rating: 186] Favorites ----------- Power F-cell Engine Engine F-cell Engine Power Core Enhanced Fission Core Reactor Antimatter Reactor Propulsion Medium Treads Treads Medium Treads Utility Experimental Targeting Computer Device Experimental Heat Sink Processor Experimental Targeting Computer Protection Improved Medium Armor Plating Weapon HERF Cannon Energy Gun Improved EM Shotgun Energy Cannon HERF Cannon Ballistic Cannon Compact Linear Accelerator Build | -11 -10 -9 -8 -7 -7 -6 -6 -6 -5 -4 -4 -4 -3 -3 ------- Run | Scr Mat Mat Mat Fac Sto Fac Ext Cet Fac Fac Upp Upp Res Tes Slots Evolved 14 | . . 2 2 2 . 2 . . 2 2 . . 2 . Power 3 | . . . 1 1 . 1 . . . . . . . . Propulsion 2 | . . . . . . . . . . . . . 2 . Utility 8 | . . 2 1 1 . 1 . . 1 2 . . . . Weapon 1 | . . . . . . . . . 1 . . . . . Parts Attached 225 | . . . 1 11 6 10 3 3 35 102 . . 29 25 Power 10 | . . . . . . . . 2 4 3 . . . 1 Engine 2 | . . . . . . . . 2 . . . . . . Core 2 | . . . . . . . . . 2 . . . . . Reactor 6 | . . . . . . . . . 2 3 . . . 1 Propulsion 2 | . . . . . . . . . 1 1 . . . . Treads 2 | . . . . . . . . . 1 1 . . . . Leg . | . . . . . . . . . . . . . . . Wheel . | . . . . . . . . . . . . . . . Hover . | . . . . . . . . . . . . . . . Flight . | . . . . . . . . . . . . . . . Utility 19 | . . . 1 1 . . 2 . 5 7 . . . 3 Device 16 | . . . 1 . . . 2 . 4 6 . . . 3 Storage . | . . . . . . . . . . . . . . . Processor 2 | . . . . 1 . . . . . 1 . . . . Hackware . | . . . . . . . . . . . . . . . Protection 1 | . . . . . . . . . 1 . . . . . Artifact . | . . . . . . . . . . . . . . . Weapon 194 | . . . . 10 6 10 1 1 25 91 . . 29 21 Energy Gun . | . . . . . . . . . . . . . . . Energy Cannon 102 | . . . . 5 3 5 1 1 13 51 . . 13 10 Ballistic Gun . | . . . . . . . . . . . . . . . Ballistic Cannon 92 | . . . . 5 3 5 . . 12 40 . . 16 11 Launcher . | . . . . . . . . . . . . . . . Special Weapon . | . . . . . . . . . . . . . . . Impact Weapon . | . . . . . . . . . . . . . . . Slashing Weapon . | . . . . . . . . . . . . . . . Piercing Weapon . | . . . . . . . . . . . . . . . Special Melee Weapon . | . . . . . . . . . . . . . . . Unidentified Prototypes . | . . . . . . . . . . . . . . . Parts Lost 43 | . 1 2 . 1 2 1 1 7 4 8 1 . . 15 Power 7 | . . . . . . . . 3 . . 1 . . 3 Propulsion 3 | . . . . . . . . 1 . . . . . 2 Utility 18 | . . . . . . 1 1 2 2 4 . . . 8 Weapon 15 | . 1 2 . 1 2 . . 1 2 4 . . . 2 Highest Loss Streak 14 | . 1 2 . 1 1 1 1 4 3 3 1 . . 14 To Critical Strikes 4 | . . . . . . . . 3 . . . . . 1 Average Slot Usage (%) 90 | . 13 10 100 99 100 92 93 92 92 89 88 89 84 84 Engine 11 | . . . 18 23 23 25 26 25 4 . . . . . Core 1 | . . . . . . . . . 4 4 . . . . Reactor 8 | . . . . . . . . . 12 15 20 21 18 18 Treads 7 | . . . 18 15 15 6 6 6 5 5 5 5 9 9 Device 25 | . . . 17 17 15 25 26 25 28 31 31 31 29 31 Processor 16 | . . . 18 20 23 20 20 20 17 15 15 15 12 9 Protection 1 | . . . 9 7 7 . . . . . . . . 1 Energy Cannon 13 | . . . 18 14 14 12 13 13 15 12 15 15 12 12 Naked Turns 26 | . 10 16 . . . . . . . . . . . . Heaviest Build 126 | . 3 3 53 68 66 83 83 80 111 121 121 119 119 126 Greatest Support 135 | 3 3 3 56 56 56 70 70 70 75 75 60 60 135 135 Greatest Overweight (x) 2 | . . . . 1 1 1 1 1 1 2 2 1 . 1 Average Overweight (x) . | . . . . 1 1 1 1 . 1 1 1 1 . . Largest Inventory Capacity 10 | 10 10 10 10 10 10 10 10 10 10 10 10 10 10 10 Average Capacity 10 | 10 10 10 10 10 10 10 10 10 10 10 10 10 10 10 Most Carried 10 | . . . 2 7 7 10 10 9 10 10 7 7 10 10 Average Carried 7 | . . . . 6 7 9 8 7 8 8 7 7 8 9 Final Capacity 10 | 10 10 10 10 10 10 10 10 10 10 10 10 10 10 10 Final Carried 10 | . . . 1 7 7 9 8 9 9 7 7 7 10 7 Class Distribution -------------------- 43% | Generator-Gunner 42% | Generator-Mutant 7% | Generator-Tank 6% | Mutant Dominant Class ---------------- Mutant | -10/Materials Mutant | -9/Materials Mutant | -8/Materials Generator-Mutant | -7/Factory Generator-Mutant | -7/Storage Generator-Mutant | -6/Factory Generator-Mutant | -6/Extension Generator-Mutant | -6/Cetus Generator-Gunner | -5/Factory Generator-Gunner | -4/Factory Generator-Gunner | -4/Upper Caves Generator-Gunner | -4/Upper Caves Generator-Gunner | -3/Research Generator-Tank | -3/Testing Resources | -11 -10 -9 -8 -7 -7 -6 -6 -6 -5 -4 -4 -4 -3 -3 ----------- Run | Scr Mat Mat Mat Fac Sto Fac Ext Cet Fac Fac Upp Upp Res Tes Matter Collected 4644 | . 148 47 10 212 79 196 30 25 592 2016 . . 642 647 Remotely . | . . . . . . . . . . . . . . . Salvage Created 35642 | . 236 629 1241 2285 1797 1897 2161 1637 4076 10429 538 263 4873 3580 Parts . | . . . . . . . . . . . . . . . Haulers Intercepted 17 | . . 1 2 2 3 2 . . 2 2 . . 1 2 Recyclers Shooed . | . . . . . . . . . . . . . . . Parts Field Recycled . | . . . . . . . . . . . . . . . Retrieved Matter . | . . . . . . . . . . . . . . . Parts Self-Destructed . | . . . . . . . . . . . . . . . Prevented . | . . . . . . . . . . . . . . . Kills | -11 -10 -9 -8 -7 -7 -6 -6 -6 -5 -4 -4 -4 -3 -3 ------- Run | Scr Mat Mat Mat Fac Sto Fac Ext Cet Fac Fac Upp Upp Res Tes Combat Hostiles Destroyed 460 | . 2 13 15 33 23 19 29 28 51 136 6 3 63 39 Guns 14 | . 1 13 . . . . . . . . . . . . Cannons 254 | . . . 14 23 17 13 18 17 26 72 2 . 28 24 AOE 9 | . 1 . . . 1 . 2 . 1 1 1 . 2 . Classes Destroyed 22 | . 4 3 2 6 . 1 1 . . 2 . . 2 1 Worker 18 | . 1 . 2 . 4 4 . . 3 4 . . . . Builder 24 | . . . 1 3 1 3 3 . 3 9 . . . 1 Tunneler 3 | . . . . 1 . 1 . . . 1 . . . . Hauler 17 | . . 1 2 2 3 2 . . 2 2 . . 1 2 Recycler 7 | . 1 . 1 . 1 2 1 . 1 . . . . . Carrier 8 | . . . . . . . . . . 6 . . 1 1 Mechanic 12 | . . . . 2 2 1 . . 2 3 . . . 2 Operator 5 | . . . . 2 . . . . . . . . 1 2 Watcher 22 | . 1 2 4 2 . 1 3 2 . . . . 4 3 Swarmer 38 | . . 4 . . . . 2 9 . 7 1 . 11 4 Saboteur 5 | . . . . . . . . . . 4 . . . 1 Grunt 214 | . 2 7 8 19 17 7 7 12 25 63 4 3 26 14 Brawler 21 | . . . . 1 . 2 . . 4 10 . . 2 2 Duelist 22 | . . . 1 1 . . . . 3 11 . . 3 3 Protector 15 | . . . . 1 . . . . 2 7 . . 3 2 Researcher 4 | . . . . . . . . . . . . . . 4 Sentry 34 | . . 2 6 7 3 2 7 . 2 1 1 . 2 1 Specialist 4 | . . . . . . . . . . . . . 4 . Hunter 26 | . . . . . . 4 5 . 7 2 . . 2 6 Programmer 63 | . . . . 4 3 4 . . 8 31 . . 8 5 Heavy 2 | . . . . . . . . . . . . . 2 . Behemoth 2 | . . . . . . . 2 . . . . . . . Cetus Guard 7 | . . . . . . . . 7 . . . . . . Protovariant X 1 | . . . . . . . . . . . . . . 1 Thug 3 | . . . . . . . 3 . . . . . . . Savage 2 | . . . . . . . 2 . . . . . . . Guerrilla 1 | . . . . . . . 1 . . . . . . . Best Kill Streak 16 | . 4 5 6 8 6 4 10 9 6 9 3 3 10 16 Combat Bots Only 15 | . 2 4 4 6 4 4 9 9 6 9 3 3 8 15 Max Kills in Single Turn 3 | . 1 1 2 1 1 2 2 1 1 2 1 1 3 1 Gunslinging . | . . . . . . . . . . . . . . . Exploded 2 | . 1 . . . 1 . 1 . 1 1 1 . 2 . Melee . | . . . . . . . . . . . . . . . Uniques/NPCs Destroyed . | . . . . . . . . . . . . . . . Combat | -11 -10 -9 -8 -7 -7 -6 -6 -6 -5 -4 -4 -4 -3 -3 -------- Run | Scr Mat Mat Mat Fac Sto Fac Ext Cet Fac Fac Upp Upp Res Tes Damage Taken 10281 | . 63 385 322 527 204 405 542 632 1745 1783 113 33 729 2798 Core 1048 | . 8 239 12 44 20 41 57 73 112 195 11 5 30 201 Absorbed by Shields 6683 | . . . . 555 210 311 502 661 1168 1517 121 35 794 809 Core Remaining (%) 83 | 100 96 40 97 . 90 . . 79 88 . . 81 . . Volleys Fired 1200 | . 42 86 47 112 85 83 81 77 128 230 11 3 108 107 Largest 3 | . 1 1 2 2 2 2 2 2 3 3 3 3 3 3 Hottest 282 | . 45 45 138 144 150 162 162 156 264 282 282 282 282 282 Shots Fired 2794 | . 42 85 94 223 170 166 162 154 367 658 33 9 320 311 Gun 128 | . 42 85 . . . . . . . . . . . 1 Cannon 2666 | . . . 94 223 170 166 162 154 367 658 33 9 320 310 Launcher . | . . . . . . . . . . . . . . . Special . | . . . . . . . . . . . . . . . Kinetic 316 | . . . . 17 4 16 . . 36 130 . . 44 69 Thermal . | . . . . . . . . . . . . . . . Explosive . | . . . . . . . . . . . . . . . Electromagnetic 2478 | . 42 85 94 206 166 150 162 154 331 528 33 9 276 242 Robot Hit Streak 122 | . 6 22 29 34 34 23 22 57 122 49 16 13 45 60 Robot Miss Streak 2 | . 1 2 1 1 2 1 2 1 2 1 1 1 2 1 Penetration Max 1 | . . . . . . . . . . 1 . . . 1 Secondary Targets . | . . . . . . . . . . . . . . . Shots Hit Robots 1634 | . 14 36 52 142 87 83 89 82 214 443 18 8 193 173 Core Hits 676 | . 7 28 25 52 31 32 37 37 90 185 6 . 76 70 Critical Kills . | . . . . . . . . . . . . . . . Critical Parts Destroyed . | . . . . . . . . . . . . . . . Critical Strikes 43 | . . . 3 6 1 2 6 3 2 9 1 . 1 9 Blast 9 | . . . . 1 . . . . . 4 . . 1 3 Corrupt 34 | . . . 3 5 1 2 6 3 2 5 1 . . 6 Melee Attacks . | . . . . . . . . . . . . . . . Impact . | . . . . . . . . . . . . . . . Slashing . | . . . . . . . . . . . . . . . Piercing . | . . . . . . . . . . . . . . . Sneak Attacks . | . . . . . . . . . . . . . . . Combat Hostiles . | . . . . . . . . . . . . . . . Follow-up Attacks . | . . . . . . . . . . . . . . . Damage Inflicted 72923 | . 361 742 1875 4433 3059 3800 3720 3429 7852 23132 1018 430 10163 8909 Guns 1022 | . 267 720 . . . . . . . . . . . 35 Cannons 68446 | . . . 1792 4097 2849 3495 3450 3068 7686 22136 930 430 9639 8874 Explosions 3455 | . 94 22 83 336 210 305 270 361 166 996 88 . 524 . Melee . | . . . . . . . . . . . . . . . Ramming . | . . . . . . . . . . . . . . . Kinetic 11877 | . . . . 601 157 504 . . 1065 5546 . . 1328 2676 Thermal 3146 | . 94 22 44 210 210 268 270 361 59 996 88 . 524 . Explosive 157 | . . . 39 118 . . . . . . . . . . Electromagnetic 57743 | . 267 720 1792 3504 2692 3028 3450 3068 6728 16590 930 430 8311 6233 Impact . | . . . . . . . . . . . . . . . Slashing . | . . . . . . . . . . . . . . . Piercing . | . . . . . . . . . . . . . . . Highest Corruption 8 | . . 1 . 1 . . . . 1 4 . . . 8 Average Corruption 2 | . . 1 . 1 . . . . 1 3 . . . 6 Corruption Purged 7 | . . . . . . . . . . 4 . . . 3 Corruption Blocked 77 | . . . . . . . . . . 9 . . 8 60 Effects 14 | . . 1 . . . . . . 3 3 . . . 7 Message Errors 4 | . . . . . . . . . . 2 . . . 2 Matter Fused 3 | . . . . . . . . . 2 . . . . 1 Heat Flow Errors 1 | . . . . . . . . . . . . . . 1 Energy Discharges 2 | . . . . . . . . . 1 . . . . 1 Data Loss (minor) 1 | . . . . . . . . . . . . . . 1 Data Loss (major) 1 | . . . . . . . . . . 1 . . . . Alerts 1 | . . . . . . . . . . . . . . 1 Weapon Failures 1 | . . 1 . . . . . . . . . . . . Overload Shots . | . . . . . . . . . . . . . . . Overflow Damage 2551 | . . . 78 233 82 211 125 82 97 698 77 1 406 461 Projectiles 2307 | . . . 78 232 54 173 75 82 97 663 28 1 363 461 Explosions 244 | . . . . 1 28 38 50 . . 35 49 . 43 . Melee . | . . . . . . . . . . . . . . . Knockbacks 91 | . . . . 2 . 5 . . 7 41 . . 10 26 Impact . | . . . . . . . . . . . . . . . Kinetic 85 | . . . . 2 . 5 . . 7 37 . . 8 26 Secondary 6 | . . . . . . . . . . 4 . . 2 . Self-Inflicted Damage 302 | . . 26 24 32 20 74 . . . 38 . . 43 45 Shots 9 | . . 1 1 1 1 2 . . . 1 . . 1 1 Rammed . | . . . . . . . . . . . . . . . Targets Rammed . | . . . . . . . . . . . . . . . Kicked . | . . . . . . . . . . . . . . . Crushed . | . . . . . . . . . . . . . . . Highest Temperature 287 | . 28 60 207 261 224 . . 28 287 108 . . . 196 Average Temperature 55 | . 17 14 51 61 55 . . 17 43 31 . . . 124 Received Heat Transfer 2583 | . 48 231 171 188 84 61 130 101 361 421 50 9 153 575 Siege Activations . | . . . . . . . . . . . . . . . Robots Corrupted 198 | . . . 2 10 7 7 9 11 26 68 3 3 35 17 Combat Hostiles 181 | . . . 1 10 5 6 7 11 24 63 3 3 33 15 Parts Fried . | . . . . . . . . . . . . . . . Impact Corruptions . | . . . . . . . . . . . . . . . Robots Melted . | . . . . . . . . . . . . . . . Combat Hostiles . | . . . . . . . . . . . . . . . Parts Melted . | . . . . . . . . . . . . . . . Heat Transferred 2576 | . 100 50 50 150 200 300 250 350 50 676 50 . 350 . Parts Sabotaged 7 | . . . . . . . . . . 2 . . . 5 Parts Stolen . | . . . . . . . . . . . . . . . Parts Stripped . | . . . . . . . . . . . . . . . Power Chain Reactions 27 | . 1 1 1 2 4 2 2 4 1 6 1 . 2 . Missiles Intercepted . | . . . . . . . . . . . . . . . Alert | -11 -10 -9 -8 -7 -7 -6 -6 -6 -5 -4 -4 -4 -3 -3 ------- Run | Scr Mat Mat Mat Fac Sto Fac Ext Cet Fac Fac Upp Upp Res Tes Peak Influence 2313 | . 159 469 683 719 591 339 340 735 1404 2313 . . 1995 2120 Initial 1100 | . . 57 165 265 195 65 27 165 358 592 . . 445 1100 Average 667 | . 99 303 402 357 292 119 82 484 822 1142 . . 1110 1529 Maximum Alert Level 5 | . . 2 2 3 2 1 1 3 4 5 . . 5 5 Low Security (%) 22 | 100 100 21 8 12 19 76 91 5 . . . . . . Level 1 19 | . . 54 43 54 64 23 8 27 1 . . . . . Level 2 17 | . . 23 48 30 16 . . 57 37 12 . . 27 . Level 3 15 | . . . . 2 . . . 9 42 35 . . 22 . Level 4 18 | . . . . . . . . . 19 38 . . 37 62 Level 5 5 | . . . . . . . . . . 13 . . 12 20 High Security . | . . . . . . . . . . . . . . 17 Max Security . | . . . . . . . . . . . . . . . Sterilizations 1 | . . . . . . . . . . 1 . . . . Squads Dispatched 115 | . . 1 . 11 7 7 3 3 20 37 . . 13 13 Investigation 16 | . . 1 . . 2 1 2 3 2 2 . . 1 2 Extermination 31 | . . . . 4 2 4 . . 4 13 . . 3 1 Reinforcement 11 | . . . . 2 1 1 1 . 2 . . . 4 . Assault 47 | . . . . 2 1 1 . . 6 22 . . 5 10 Garrison 10 | . . . . 3 1 . . . 6 . . . . . Intercept . | . . . . . . . . . . . . . . . Searches Triggered . | . . . . . . . . . . . . . . . Construction Impeded 4 | . . . . 1 . 1 1 . 1 . . . . . Haulers Reinforced 2 | . . . . . 1 . . . 1 . . . . . Active Scanning Responses . | . . . . . . . . . . . . . . . Cargo Convoy Interrupts . | . . . . . . . . . . . . . . . Stealth | -11 -10 -9 -8 -7 -7 -6 -6 -6 -5 -4 -4 -4 -3 -3 --------- Run | Scr Mat Mat Mat Fac Sto Fac Ext Cet Fac Fac Upp Upp Res Tes Distress Signals 14 | . 1 . 2 . 4 . 1 2 . 2 . . 2 . Communications Jammed . | . . . . . . . . . . . . . . . Distress Signals . | . . . . . . . . . . . . . . . Times Spotted 593 | . 5 17 19 41 23 20 31 35 60 178 6 3 73 82 Peak Tracking Total 20 | . 3 5 5 6 4 5 5 7 8 8 3 3 6 20 Tactical Retreats 31 | . 1 . . 2 2 1 1 2 1 19 . . 2 . Traps | -11 -10 -9 -8 -7 -7 -6 -6 -6 -5 -4 -4 -4 -3 -3 ------- Run | Scr Mat Mat Mat Fac Sto Fac Ext Cet Fac Fac Upp Upp Res Tes Traps Triggered 7 | . . . . . 1 . 1 . 1 4 . . . . Indirectly 3 | . . . . . . . . . 1 2 . . . . Trap Hack Attempts . | . . . . . . . . . . . . . . . Triggered . | . . . . . . . . . . . . . . . Disarmed . | . . . . . . . . . . . . . . . Reprogrammed . | . . . . . . . . . . . . . . . Reused . | . . . . . . . . . . . . . . . Traps Extracted . | . . . . . . . . . . . . . . . Installed . | . . . . . . . . . . . . . . . Triggered . | . . . . . . . . . . . . . . . Machines | -11 -10 -9 -8 -7 -7 -6 -6 -6 -5 -4 -4 -4 -3 -3 ---------- Run | Scr Mat Mat Mat Fac Sto Fac Ext Cet Fac Fac Upp Upp Res Tes Machines Disabled 304 | . 6 16 15 25 12 39 17 20 50 51 . . 22 31 Max in Single Turn 7 | . 1 1 2 4 1 5 2 2 7 6 . . 1 3 Garrison Access 6 | . . . . 2 1 1 . . 1 . . . 1 . Machines Sabotaged . | . . . . . . . . . . . . . . . Garrisons Compromised . | . . . . . . . . . . . . . . . Overloaded Fab Kills . | . . . . . . . . . . . . . . . Hacking | -11 -10 -9 -8 -7 -7 -6 -6 -6 -5 -4 -4 -4 -3 -3 --------- Run | Scr Mat Mat Mat Fac Sto Fac Ext Cet Fac Fac Upp Upp Res Tes Machines Accessed 41 | . 1 4 1 2 5 . 10 3 1 2 . . 6 6 Terminals 39 | . 1 4 1 2 5 . 10 3 . 2 . . 5 6 Fabricators . | . . . . . . . . . . . . . . . Repair Stations . | . . . . . . . . . . . . . . . Recycling Units . | . . . . . . . . . . . . . . . Scanalyzers . | . . . . . . . . . . . . . . . Garrison Access 2 | . . . . . . . . . 1 . . . 1 . Total Hacks 93 | . 2 10 2 3 13 . 19 10 2 6 . . 13 13 Successful 52 | . 1 9 1 1 9 . 12 3 . 4 . . 6 6 Failed 41 | . 1 1 1 2 4 . 7 7 2 2 . . 7 7 Catastrophic 9 | . . . . 1 . . . 1 2 . . . 2 3 Database Lockouts . | . . . . . . . . . . . . . . . Manual . | . . . . . . . . . . . . . . . Terminals 89 | . 2 10 2 3 13 . 19 10 . 6 . . 11 13 Fabricators . | . . . . . . . . . . . . . . . Repair Stations . | . . . . . . . . . . . . . . . Recycling Units . | . . . . . . . . . . . . . . . Scanalyzers . | . . . . . . . . . . . . . . . Garrison Access 4 | . . . . . . . . . 2 . . . 2 . Terminal Hacks 52 | . 1 9 1 1 9 . 12 3 . 4 . . 6 6 Record 10 | . . . . . 1 . 1 3 . 1 . . 1 3 Robot Analysis 1 | . . 1 . . . . . . . . . . . . Prototype ID Bank 5 | . 1 3 . . . . 1 . . . . . . . Open Door 11 | . . . . . 3 . 8 . . . . . . . Open DSF 2 | . . . . 1 . . . . . . . . 1 . Level Access Points 2 | . . 1 . . . . . . . . . . . 1 Branch Access Points 4 | . . 1 . . 1 . . . . . . . 1 1 Alert Level 1 | . . . . . . . . . . . . . 1 . Unreport Threat 1 | . . . . . . . 1 . . . . . . . Locate Traps 2 | . . 1 . . . . 1 . . . . . . . Dispatch Records 1 | . . 1 . . . . . . . . . . . . Security Status 1 | . . . . . . . . . . 1 . . . . Investigation Status 2 | . . . . . 1 . . . . 1 . . . . Extermination Status 2 | . . . . . . . . . . 1 . . 1 . Recall Investigation 3 | . . 1 1 . 1 . . . . . . . . . Hauler Manifests 1 | . . . . . . . . . . . . . 1 . Zone Layout 3 | . . . . . 2 . . . . . . . . 1 Fabricator Hacks . | . . . . . . . . . . . . . . . Repair Station Hacks . | . . . . . . . . . . . . . . . Recycling Unit Hacks . | . . . . . . . . . . . . . . . Scanalyzer . | . . . . . . . . . . . . . . . Garrison Access Hacks . | . . . . . . . . . . . . . . . Unauthorized Hacks . | . . . . . . . . . . . . . . . Terminals . | . . . . . . . . . . . . . . . Fabricators . | . . . . . . . . . . . . . . . Repair Stations . | . . . . . . . . . . . . . . . Recycling Units . | . . . . . . . . . . . . . . . Scanalyzers . | . . . . . . . . . . . . . . . Garrison Access . | . . . . . . . . . . . . . . . Data Cores Recovered 3 | . . . . 1 . . . . . . . . 1 1 Used 1 | . . . . . . . . . . . . . 1 . Hacking Detections 30 | . 1 3 1 1 3 . 5 3 1 2 . . 4 6 Full Trace Events 13 | . . 1 . . 2 . 2 3 1 1 . . 1 2 Feedback Events 2 | . . 1 . . 1 . . . . . . . . . Corruption 2 | . . 1 . . 1 . . . . . . . . . Feedback Blocked . | . . . . . . . . . . . . . . . Robot Schematics Acquired 2 | . . . . . . . . . . . . . . 2 Robots Built . | . . . . . . . . . . . . . . . Authchips . | . . . . . . . . . . . . . . . Time . | . . . . . . . . . . . . . . . Total Robot Build Rating . | . . . . . . . . . . . . . . . Part Schematics Acquired 12 | . . . . . . . . . . . . . . 12 Parts Built . | . . . . . . . . . . . . . . . Authchips . | . . . . . . . . . . . . . . . Time . | . . . . . . . . . . . . . . . Total Part Build Rating . | . . . . . . . . . . . . . . . Parts Repaired . | . . . . . . . . . . . . . . . Time . | . . . . . . . . . . . . . . . Parts Recycled . | . . . . . . . . . . . . . . . Recycled Matter . | . . . . . . . . . . . . . . . Retrieved Matter . | . . . . . . . . . . . . . . . Retrieved Components . | . . . . . . . . . . . . . . . Parts Scanalyzed . | . . . . . . . . . . . . . . . Part Schematics Acquired . | . . . . . . . . . . . . . . . Parts Damaged . | . . . . . . . . . . . . . . . Bothacking | -11 -10 -9 -8 -7 -7 -6 -6 -6 -5 -4 -4 -4 -3 -3 ------------ Run | Scr Mat Mat Mat Fac Sto Fac Ext Cet Fac Fac Upp Upp Res Tes Used RIF Installer . | . . . . . . . . . . . . . . . Robots Hacked . | . . . . . . . . . . . . . . . Non-combat . | . . . . . . . . . . . . . . . Combat . | . . . . . . . . . . . . . . . Robot Hacks Applied . | . . . . . . . . . . . . . . . Relay Couplers Released 12 | . . . . 5 1 1 . . 2 . . . 3 . Machine Destruction 9 | . . . . 5 1 1 . . 2 . . . . . Programmers 3 | . . . . . . . . . . . . . 3 . Fabnet Peak Effective % . | . . . . . . . . . . . . . . . Robots Rewired . | . . . . . . . . . . . . . . . Allies Hacked . | . . . . . . . . . . . . . . . Hacks Repelled . | . . . . . . . . . . . . . . . Allies | -11 -10 -9 -8 -7 -7 -6 -6 -6 -5 -4 -4 -4 -3 -3 -------- Run | Scr Mat Mat Mat Fac Sto Fac Ext Cet Fac Fac Upp Upp Res Tes Total Allies 21 | . . . . . 10 . 11 . . . . . . . Largest Group 10 | . . . . . 10 . 5 1 . . . . . . Highest-Rated Group 173 | . . . . . 173 . 154 39 . . . . . . Highest-Rated Ally 39 | . . . . . 29 . 39 39 . . . . . . Total Orders 9 | . . . . . 9 . . . . . . . . . ROAM 9 | . . . . . 9 . . . . . . . . . Ally Attacks 172 | . . . . . 48 . 112 12 . . . . . . Total Damage 2538 | . . . . . 740 . 1718 80 . . . . . . Kills 15 | . . . . . 5 . 9 1 . . . . . . Allies Corrupted . | . . . . . . . . . . . . . . . Allies Melted . | . . . . . . . . . . . . . . . Intel | -11 -10 -9 -8 -7 -7 -6 -6 -6 -5 -4 -4 -4 -3 -3 ------- Run | Scr Mat Mat Mat Fac Sto Fac Ext Cet Fac Fac Upp Upp Res Tes Robot Analysis Total 1 | . . 1 . . . . . . . . . . . . Derelict Logs Recovered . | . . . . . . . . . . . . . . . Drone Launches . | . . . . . . . . . . . . . . . Drone Recoveries . | . . . . . . . . . . . . . . . Exploration | -11 -10 -9 -8 -7 -7 -6 -6 -6 -5 -4 -4 -4 -3 -3 ------------- Run | Scr Mat Mat Mat Fac Sto Fac Ext Cet Fac Fac Upp Upp Res Tes Turns Passed 25686 | 9 295 500 762 2953 2218 2804 2227 745 2583 6562 1112 135 1541 1240 Spaces Moved 5782 | 18 264 331 288 546 265 557 566 191 567 730 376 51 587 445 Core 613 | 18 264 331 . . . . . . . . . . . . Treads 5169 | . . . 288 546 265 557 566 191 567 730 376 51 587 445 Legs . | . . . . . . . . . . . . . . . Wheels . | . . . . . . . . . . . . . . . Hover . | . . . . . . . . . . . . . . . Flight . | . . . . . . . . . . . . . . . Fastest Speed 50 | 50 50 50 160 240 240 240 240 160 240 240 250 250 175 170 Average Speed 209 | 50 50 50 160 240 240 240 240 230 240 260 280 250 175 178 Slowest Speed 330 | 50 50 50 160 240 240 240 240 240 240 330 330 250 175 250 Overloaded Moves . | . . . . . . . . . . . . . . . Propulsion Burnouts . | . . . . . . . . . . . . . . . Robots Hopped . | . . . . . . . . . . . . . . . Cave-ins Triggered . | . . . . . . . . . . . . . . . Exploration Rate (%) 34 | 3 47 38 38 12 38 13 74 71 15 16 62 10 20 60 Regions Visited 14 Branch Regions 6 Pre-discovered Areas . | . . . . . . . . . . . . . . . Known Exits Taken 2 | . . 1 . . . . . . . . . . 1 . Unknown Exits Taken 12 | 1 1 . 1 1 1 1 1 1 1 1 1 1 . . Scrap Searched . | . . . . . . . . . . . . . . . Spaces Dug . | . . . . . . . . . . . . . . . Terrain Destroyed 1252 | . 1 3 76 167 48 192 8 4 226 375 1 . 99 52 Melee . | . . . . . . . . . . . . . . . Projectile 49 | . . . . 1 . 2 . . 6 13 . . 16 11 AOE 1203 | . 1 3 76 166 48 190 8 4 220 362 1 . 83 41 Terrain Rammed . | . . . . . . . . . . . . . . . Walls Destroyed . | . . . . . . . . . . . . . . . Machines Disabled . | . . . . . . . . . . . . . . . Actions | -11 -10 -9 -8 -7 -7 -6 -6 -6 -5 -4 -4 -4 -3 -3 --------- Run | Scr Mat Mat Mat Fac Sto Fac Ext Cet Fac Fac Upp Upp Res Tes Total 16927 | 17 384 578 496 1962 1675 1862 1275 341 1512 4870 411 53 849 642 Wait 9616 | . 79 162 160 1293 1318 1196 619 71 752 3760 25 . 121 60 Move 5768 | 17 263 330 287 545 264 556 565 190 566 729 375 50 586 445 Hop . | . . . . . . . . . . . . . . . Pick Up 15 | . . . . . . 2 2 . 4 6 . . . 1 Fast Attach 1 | . . . . . . . . . . 1 . . . . Attach 62 | . . . 1 1 . . 3 3 14 35 . . . 5 Detach 40 | . . . 1 1 . 5 . . 5 27 . . . 1 Swap 162 | . . . . 10 6 10 . . 21 66 . . 29 20 Drop 56 | . . . . . . 10 3 . 22 16 . . 5 . Fire 1200 | . 42 86 47 112 85 83 81 77 128 230 11 3 108 107 Melee . | . . . . . . . . . . . . . . . Ram . | . . . . . . . . . . . . . . . Kick . | . . . . . . . . . . . . . . . Crush . | . . . . . . . . . . . . . . . Escape Stasis 7 | . . . . . 2 . 2 . . . . . . 3 Rewire . | . . . . . . . . . . . . . . . Trap . | . . . . . . . . . . . . . . . Miscellaneous . | . . . . . . . . . . . . . . . Route ------- -11/Scrapyard -10/Materials -9/Materials (discovered 4 exits: *Mat x3 / Min) -8/Materials -7/Factory (discovered 2 exits: *Sto / [*Low]) -7/Storage (discovered 2 exits: [*Fac] / Rec) -6/Factory -6/Extension (discovered 2 exits: *Fac / *Cet) -6/Cetus (discovered 2 exits: *Fac / [*Arc]) -5/Factory -4/Factory -4/Upper Caves -4/Upper Caves -3/Research (discovered 3 exits: Arm / *Tes x2) -3/Testing (discovered 1 exit: *Res) History --------- Turn | Location | Event 5 | -11/Scrapyard | Discovered new exit (range 12) 10 | -11/Scrapyard | Entered Materials 219 | -10/Materials | Discovered new exit (range 7) 305 | -10/Materials | Build established: Mutant 305 | -10/Materials | Entered another Materials area 305 | -9/Materials | Evolved 2 slots: Utility x2 626 | -9/Materials | Identified exit to Materials 626 | -9/Materials | Identified exit to Mines 790 | -9/Materials | Core integrity fell below 50% 805 | -9/Materials | Entered another Materials area 805 | -8/Materials | Evolved 2 slots: Power x1, Utility x1 1504 | -8/Materials | Discovered new exit (range 14) 1567 | -8/Materials | Entered Factory 1567 | -7/Factory | Evolved 2 slots: Power x1, Utility x1 1868 | -7/Factory | Build established: Generator-Mutant 2370 | -7/Factory | Discovered new exit (range 6) 3862 | -7/Factory | Discovered new exit (range 11) 4520 | -7/Factory | Entered Storage 5554 | -7/Storage | Garrison activated, responded to threat 6214 | -7/Storage | Identified exit to Recycling 6217 | -7/Storage | Assisted by bots powering up and referring to "LRC-V3" 6691 | -7/Storage | Discovered new exit (range 15) 6738 | -7/Storage | Entered Factory 6738 | -6/Factory | Evolved 2 slots: Power x1, Utility x1 9490 | -6/Factory | Discovered new exit (range 16) 9542 | -6/Factory | Entered Extension 9765 | -6/Extension | Disrupted transfer network 10287 | -6/Extension | Rescued a captive Derelict 10433 | -6/Extension | Rescued a captive Derelict 10506 | -6/Extension | Rescued a captive Derelict 10506 | -6/Extension | Rescued a captive Derelict 10562 | -6/Extension | Rescued a captive Derelict 10996 | -6/Extension | Rescued a captive Derelict 11127 | -6/Extension | Spotted B-75 Beast 11145 | -6/Extension | Destroyed B-75 Beast 11147 | -6/Extension | Spotted B-75 Beast 11168 | -6/Extension | Destroyed B-75 Beast 11297 | -6/Extension | Rescued a captive Derelict 11299 | -6/Extension | Rescued a captive Derelict 11402 | -6/Extension | Rescued a captive Derelict 11473 | -6/Extension | Rescued a captive Derelict 11474 | -6/Extension | Rescued a captive Derelict 11636 | -6/Extension | Destroyed 9 combat bots 11735 | -6/Extension | Discovered new exit (range 10) 11737 | -6/Extension | Discovered new exit (range 6) 11769 | -6/Extension | Entered Cetus 11769 | -6/Cetus | Accompanied by 1 ally 11800 | -6/Cetus | Spotted Cetus Guard 11800 | -6/Cetus | Spotted Cetus Guard 11805 | -6/Cetus | Destroyed Cetus Guard 11805 | -6/Cetus | Spotted Cetus Guard 11808 | -6/Cetus | Allies destroyed Cetus Guard 11809 | -6/Cetus | Spotted Cetus Guard 11811 | -6/Cetus | Destroyed Cetus Guard 11817 | -6/Cetus | Destroyed Cetus Guard 11897 | -6/Cetus | Cetus Manufacturing Module disabled 12319 | -6/Cetus | Destroyed 9 combat bots 12319 | -6/Cetus | Lost 4 parts (1p2u1w) 12376 | -6/Cetus | Discovered new exit (range 15) 12431 | -6/Cetus | Spotted Cetus Guard 12431 | -6/Cetus | Spotted Cetus Guard 12436 | -6/Cetus | Destroyed Cetus Guard 12436 | -6/Cetus | Spotted Cetus Guard 12440 | -6/Cetus | Spotted Cetus Guard 12442 | -6/Cetus | Destroyed Cetus Guard 12448 | -6/Cetus | Destroyed Cetus Guard 12454 | -6/Cetus | Destroyed Cetus Guard 12490 | -6/Cetus | Discovered new exit (range 15) 12498 | -6/Cetus | Met Revision 17 12514 | -6/Cetus | Entered Factory 12514 | -5/Factory | Evolved 2 slots: Utility x1, Weapon x1 12668 | -5/Factory | Garrison activated, responded to threat 12814 | -5/Factory | First assault squad dispatched 12825 | -5/Factory | Build established: Generator-Gunner 13106 | -5/Factory | Lost 3 parts (2u1w) 13205 | -5/Factory | Found Exp. Focal Shield 13328 | -5/Factory | Garrison activated, responded to threat 14999 | -5/Factory | Discovered new exit (range 14) 15097 | -5/Factory | Entered another Factory area 15097 | -4/Factory | Evolved 2 slots: Utility x2 15597 | -4/Factory | First assault squad dispatched 18120 | -4/Factory | Destroyed 8 combat bots 18364 | -4/Factory | Destroyed 9 combat bots 21031 | -4/Factory | Destroyed 7 combat bots 21034 | -4/Factory | Lost 3 parts (2u1w) 21110 | -4/Factory | Sterilization system engaged 21110 | -4/Factory | Non-combat units ordered to evacuate 21210 | -4/Factory | Combat units ordered to evacuate 21410 | -4/Factory | Ambient heat levels rising (+10) 21560 | -4/Factory | Ambient heat levels rising (+10) 21613 | -4/Factory | Discovered new exit (range 12) 21659 | -4/Factory | Entered Upper Caves 22139 | -4/Upper Caves | Attracted the attention of an 0b10 checkpoint 22684 | -4/Upper Caves | Encountered a Warlord checkpoint 22750 | -4/Upper Caves | Discovered new exit (range 8) 22771 | -4/Upper Caves | Entered another Upper Caves area 22871 | -4/Upper Caves | Discovered new exit (range 15) 22906 | -4/Upper Caves | Entered Research 22906 | -3/Research | Evolved 2 slots: Propulsion x2 23147 | -3/Research | Identified exit to DSF 23281 | -3/Research | Identified exit to Armory 23281 | -3/Research | Identified exit to Testing 23744 | -3/Research | Destroyed 7 combat bots 23906 | -3/Research | First assault squad dispatched 24279 | -3/Research | Build established: Generator-Tank 24444 | -3/Research | High security lockdown imminent 24447 | -3/Research | Entered Testing 24454 | -3/Testing | Destroyed 8 combat bots 24984 | -3/Testing | Spotted PX-3GHB72WPVP 24987 | -3/Testing | Destroyed PX-3GHB72WPVP 25197 | -3/Testing | First assault squad dispatched 25274 | -3/Testing | Identified exit to Research 25472 | -3/Testing | High security lockdown imminent 25481 | -3/Testing | Spotted PP-M2HXGHY5EO 25552 | -3/Testing | High security lockdown engaged 25571 | -3/Testing | Destroyed 15 combat bots 25602 | -3/Testing | Lost 14 parts (3p2n7u2w) 25672 | -3/Testing | Spotted Striker 25675 | -3/Testing | Spotted Investigator 25677 | -3/Testing | Scanned by Researcher 25687 | -3/Testing | Self-destructed Last Messages --------------- 25685_ Investigator stasis bubble strength at 155. 25685_ Stasis bubble strength at 81. 25686_ L-61 Swordsman stasis bubble strength at 32. 25686_ Striker stasis bubble strength at 170. 25686_ Investigator stasis bubble strength at 146. 25686_ Stasis bubble strength at 29. 25687_ P-80 Master resets I-47 Archangel, system corruption cleaned. 25687_ G-73 Enforcer stasis bubble strength at 108. 25687_ L-61 Swordsman stasis bubble strength at 11. 25687_ Striker stasis bubble strength at 165. 25687_ P-80 Master resets L-61 Swordsman, system corruption cleaned. 25687_ Investigator stasis bubble strength at 137. [Achievement: 20k Club] [Achievement: 30k Club] [Achievement: 40k Club] [Achievement: 50k Club] [Achievement: Just Browsing] [Achievement: Magneto] [Achievement: Rambo] [Achievement: Achiever] Map ----- +----------------------------------------------------+ | ?????????????????????????????????????????????????? | | ?????????????????????????????????????????????????? | | ?????????????????????????????????????????????????? | | ?????????????????????????????????????????????????? | | ?????????????????????????????????????????????????? | | ?????????????????????????????????????????????????? | | ?????????????????????????????????????????????????? | | ?????????????????????????????????????????????????? | | ?????????????????????????????????????????????????? | | ?????????????????????????????????????????????????? | | ?????????????????????????????????????????????????? | | ???????????????????????? ????????????????????????? | | ???????????????????????? ????????????????????????? | | ???????????????????????? ????????????????????????? | | ???????????????????????? ????????????????????????? | | ???????????????????????? ???????????????????????? | | ???????????????????????? "???????????????????????? | | ???????????????????????? T#??????????????????????? | | ???????????????????????? "#????????#?????????????? | | ???????????????????????? ##?????? #??^??????????? | | ?????????????????????####+;###### # < ??????????? | | ?????????????######### gY l % %% ?????????? | | ?????????????? % %% cg ??????????? | | ????????????????? % gYg gKi ??????????????? | | ????????????????????#; **pgYpC??????????????????? | | ?????????????????????# %@l#?????????????????????? | | ?????????????????????# [##?????????????????????? | | ?????????????????????# m#??????????????????????? | | ?????????????????????# #??????????????????????? | | ?????????????????????# #??????????????????????? | | ?????????????????????#%% #######????????????????? | | ?????????????????????# # ????????????????? | | ?????????????????????# %# """ "????????????????? | | ?????????????????????# # """ ""??#????????????? | | ?????????????????????# " """ """ #????????????? | | ?????????????????????# % + """ """ #????????????? | | ?????????????????????#% %# """ """ #????????????? | | ?????????????????????# %# #?####???????? | | ?????????????????????# %#? # ###?????? | | ?????????????????????#% %#####+ # # ## ?????? | | ??????????????#""""??# %%"#?# ????? | | ??????????????#"" % # % %"#"# ??? | | ??????????????#" %%% % % % ???? | | ??????????????#"" "%^% %%%%% # ???? | | ??????????????#"" " %^%% % ???? | | ??????????????#""""" " ^""" ???? | | ????????????????###### ## ???? | | ??????????????????#### """ # ????? | | ??????????????????# "" "" ????? | | ??????????????????#""" ?????? | +----------------------------------------------------+ Best States ------------- Heat Dissipation 162 Coolant Potential 100 Energy Generation 101 Energy Capacity 1700 Matter Stores 300 Matter Capacity 300 Sight Range 16 Terrain Scan Density 10 Corruption Containment 8 Corruption Block 20 Armor Coverage 450 Resistance: KI 50 Resistance: TH 95 Resistance: EX 20 Resistance: EM 95 Resistance: I 20 Resistance: S 20 Resistance: P 20 Evasion (%) 50 Targeting Accuracy 24 Recoil Reduction 4 Particle Charging 25 Offensive Hacking 10 Item Schematics ----------------- Electron Diverter | -3/Testing | Archive Exp. Field Recycling Unit | -3/Testing | Archive Imp. KE Penetrator | -3/Testing | Archive Proton Burst Cannon | -3/Testing | Archive Cld. Gravmag System | -3/Testing | Archive Exp. Melee Analysis Suite | -3/Testing | Archive Kinetic Spear | -3/Testing | Archive Cld. Field Propulsion Drive | -3/Testing | Archive Exp. Thermal Generator | -3/Testing | Archive Adv. KE Penetrator | -3/Testing | Archive Lgt. Neutrino Core | -3/Testing | Archive Fusion Reactor | -3/Testing | Archive Robot Schematics ------------------ W-44 Eye | -3/Testing | Archive L-61 Swordsman | -3/Testing | Archive Fabricated ------------ Nothing Alien Tech Used ----------------- None Achievements -------------- 20k Club 30k Club 40k Club 50k Club Achiever Can't Touch This Cannon Specialist Hunted Just Browsing Leap Before You Look Magneto More Power To You Oh No You Don't! Preemptive Strike Rambo Respectable Loadout Revising The Future Rockin' Loadout Shocking Conclusion Challenges ------------ None Cogshop Purchases (115) ------------------------- Hvy. EM Pulse Gun (699) Imp. EM Shotgun (744) Imp. EM Shotgun (725) Hvy. Deuterium Engine (917) Hvy. Deuterium Engine (917) Med. Treads (1126) Med. Treads (1126) Imp. EM Pulse Cannon (974) Imp. EM Pulse Cannon (974) Particle Charger (796) Adv. Targeting Computer (883) Adv. Targeting Computer (883) Imp. Medium Armor Plating (897) Imp. Medium Armor Plating (897) Imp. Cooling System (896) F-cell Engine (1118) Force Field (856) Proton Cannon (921) Imp. Transmission Jammer (Loot Box) Imp. Plasma Cutter (Loot Box) Gyrokinetic Inverter (Loot Box) Xenon Bombardment Thruster (Loot Box) Magnetic Acceleration Cannon (1250) System Guard (1324) Proton Cannon (1548) Proton Cannon (1412) F-cell Engine (962) F-cell Engine (962) F-cell Engine (962) Hvy. Treads (1604) F-cell Engine (962) Adv. Cooling System (1135) Adv. Cooling System (1135) Imp. Particle Charger (1032) Hvy. Proton Cannon (1626) Hvy. Proton Cannon (1626) Hvy. Proton Cannon (1626) Shield Generator (970) Force Field (1405) Force Field (1405) Particle Charger (1038) Adv. Cooling System (1427) Enh. Fission Core (1082) Enh. Fission Core (1082) Hvy. Treads (1217) Hvy. Treads (1217) Adv. Thermal Defense Suite (2617) Imp. Force Field (1518) Tri-rail Accelerator (1188) Enh. Nova Cannon (Loot Box) Enh. Quantum Rifle (Loot Box) Exp. Terrain Scan Processor (Loot Box) Adv. Matter Compressor (Loot Box) Com. Linear Accelerator (Loot Box) Exp. Focal Shield (Loot Box) Antimatter Reactor (792) Antimatter Reactor (792) Antimatter Reactor (792) Antimatter Reactor (792) Imp. Heavy Treads (1369) Exp. Heat Sink (1204) Exp. Heat Sink (1204) Exp. Targeting Computer (2230) Exp. Targeting Computer (2230) Adv. Thermal Shield (1314) Imp. Force Field (1314) HERF Cannon (2155) HERF Cannon (2155) HERF Cannon (2155) Exp. Heat Sink (1654) Coolant Network (1508) Adv. Particle Charger (1392) Exp. Thermal Shield (1885) Adv. Corruption Screen (1539) Imp. System Restoration Module (1311) HERF Cannon (1893) Particle Reactor (1049) Com. Mass Driver (1196) Com. Mass Driver (1196) Com. HERF Cannon (2438) Adv. Cloaking Device (Loot Box) Quantum Reactor (Loot Box) Adv. Particle Charger (1712) Com. HERF Cannon (3226) Com. HERF Cannon (2691) Adv. Force Field (1814) Adv. Force Field (1814) Adv. Particle Charger (1675) Arm. Heavy Treads (967) Particle Reactor (858) Particle Reactor (858) Hvy. Antimatter Reactor (1158) Imp. Heavy Siege Treads (1339) Imp. Quantum Reactor (1526) Imp. Quantum Reactor (1526) Imp. Quantum Reactor (1526) Imp. Quantum Reactor (1526) Imp. Quantum Reactor (1526) Exp. EM Disruption Field (2285) Adv. Corruption Screen (1368) Imp. System Restoration Module (879) Adv. Particle Charger (1418) Mak. Armor Plating (593) Exp. Thermal Shield (2141) Adv. Particle Charger (1976) Com. HERF Cannon (2011) Arm. Heavy Treads (1623) Mak. Armor Plating (593) Hvy. Antimatter Reactor (1237) Hvy. Antimatter Reactor (1237) Arm. Heavy Treads (1623) Adv. Coolant Injector (1976) Beam Splitter (5030) Adv. Focal Shield (2155) Hvy. Tesla Rifle (1000) Game ------ Seed IonicArmorRefractor Manual? 0 Play Time 04:05:07 Cumulative 30.1 hours Start 2022.09.18 @ 11:17:50 End 2022.09.18 @ 16:04:44 Sessions 3 Manual Loads 0 Difficulty Adventurer Special Mode AFD2019/Pay2Buy Game No. 43 Rogue 30 Adventurer 13 Explorer 0 Win Type - Total 0 Types 0/0/0/0/0/0/0/0/0 Lore% 15 Gallery% 26 Achievement% 27 Wizard Run 0 Options --------- ASCII 0 Keyboard 0 Movement Mouse Keybinds 0 Fullscreen 2 Font 24/Crisp Map View 76x50 Tactical HUD 1 Map Filters NONE Filters NONE Steam 1 RUN: c759ae32-b64f-4023-84db-a8e72e743761